Cogmind - Beta 13 @@@ ROGUE MODE // 2024.04.05 @ 00:06:26 Player: SnaveSutit Result: Destroyed by as-85967 with Assembled Rifle Performance ------------- Evolutions (1) 500 Regions Visited (3) 600 Robots Destroyed (26) 130 Value Destroyed (730) 730 Prototype IDs (0) 0 Alien Tech Used (0) 0 Bonus (0) 0 TOTAL SCORE: 1960 Bonus ------- None Cogmind --------- Core Integrity 0/400 Matter 11/300 Energy 100/100 System Corruption 0% Temperature Cool (0) Movement Core (1400) Ox27 Location -9/Mines Parts ------- > --- POWER (1) -------- (None) > --- PROPULSION (2) --- (None) > --- UTILITY (4) ------ Huge Storage Unit Visual Processing Unit Signal Interpreter > --- WEAPON (2) ------- Beam Cannon > --- INVENTORY (25) --- Light Ion Engine Improved Heat Sink Medium Battery (150) Medium Matter Pod (0) Propulsion Shielding Shield Generator Hacking Suite EM Pulse Gun Autogun Autogun Mini Grenade Launcher Mini Grenade Launcher Mini Grenade Launcher Mace Peak State ------------ > --- POWER ------------ Light Ion Engine > --- PROPULSION ------- Light Treads Light Treads > --- UTILITY ---------- Huge Storage Unit Visual Processing Unit Signal Interpreter Medium Armor Plating > --- WEAPON ----------- Autogun Autogun > --- INVENTORY -------- Light Ion Engine Improved Heat Sink Propulsion Shielding Shield Generator Hacking Suite EM Pulse Gun Beam Cannon Mini Grenade Launcher Mini Grenade Launcher Mini Grenade Launcher Mini Grenade Launcher [Rating: 15] Favorites ----------- Power Ion Engine Engine Ion Engine Propulsion Light Treads Treads Light Treads Utility Signal Interpreter Storage Huge Storage Unit Processor Signal Interpreter Protection Medium Armor Plating Weapon Autogun Energy Gun EM Pulse Gun Energy Cannon Beam Cannon Ballistic Gun Autogun Ballistic Cannon Battle Cannon Launcher Mini Grenade Launcher Impact Weapon Mace Build | -11 -10 -9 -9 ------- Run | Yrd Mat Mat Min Slots Evolved 2 | . . 2 . Power . | . . . . Propulsion . | . . . . Utility 2 | . . 2 . Weapon . | . . . . Parts Attached 22 | 6 6 5 5 Power 2 | 1 . 1 . Engine 2 | 1 . 1 . Core . | . . . . Reactor . | . . . . Propulsion 3 | 2 . 1 . Treads 3 | 2 . 1 . Leg . | . . . . Wheel . | . . . . Hover . | . . . . Flight . | . . . . Utility 8 | 1 4 3 . Device . | . . . . Storage 4 | 1 3 . . Processor 2 | . 1 1 . Hackware . | . . . . Protection 2 | . . 2 . Artifact . | . . . . Weapon 9 | 2 2 . 5 Energy Gun 1 | 1 . . . Energy Cannon 1 | . . . 1 Ballistic Gun 3 | 1 2 . . Ballistic Cannon 1 | . . . 1 Launcher 2 | . . . 2 Special Weapon . | . . . . Impact Weapon 1 | . . . 1 Slashing Weapon . | . . . . Piercing Weapon . | . . . . Special Melee Weapon . | . . . . Unidentified Prototypes . | . . . . Parts Lost 8 | . . 2 6 Power 1 | . . . 1 Propulsion 3 | . . 1 2 Utility 2 | . . 1 1 Weapon 2 | . . . 2 Highest Loss Streak 6 | . . 1 6 To Critical Strikes 1 | . . . 1 Average Slot Usage (%) 93 | . 99 94 75 Engine 11 | . 14 11 6 Treads 19 | . 28 17 13 Storage 11 | . 14 11 11 Processor 19 | . 13 22 22 Protection 7 | . . 10 6 Ballistic Gun 21 | . 24 22 11 Naked Turns . | . . . . Heaviest Build 98 | 13 91 98 96 Greatest Support 40 | 40 40 40 40 Greatest Overweight (x) 27 | . 2 4 27 Average Overweight (x) 1 | . . 2 4 Largest Inventory Capacity 25 | 8 25 25 25 Average Capacity 21 | 7 12 25 25 Most Carried 15 | 5 10 14 15 Average Carried 9 | 1 6 9 14 Final Capacity 25 | 8 25 25 25 Final Carried 14 | 1 9 14 14 Class Distribution -------------------- 100% | Mutant Dominant Class ---------------- Mutant | -10/Materials Mutant | -9/Materials Mutant | -9/Mines Resources | -11 -10 -9 -9 ----------- Run | Yrd Mat Mat Min Matter Collected 762 | 256 242 257 7 Remotely . | . . . . Salvage Created 845 | . 401 425 19 Parts 62 | . 35 27 . Haulers Intercepted . | . . . . Recyclers Shooed . | . . . . Parts Field Recycled . | . . . . Retrieved Matter . | . . . . Parts Self-Destructed . | . . . . Prevented . | . . . . Kills | -11 -10 -9 -9 ------- Run | Yrd Mat Mat Min Combat Hostiles Destroyed 32 | . 10 7 15 Guns 17 | . 10 7 . Cannons 1 | . . . 1 AOE 14 | . . . 14 Classes Destroyed 9 | . 6 1 2 Worker 1 | . 1 . . Builder 1 | . 1 . . Operator 1 | . 1 . . Watcher 5 | . 1 4 . Swarmer 3 | . 3 . . Grunt 11 | . 7 4 . Sentry 3 | . . 3 . Demolisher 1 | . . . 1 Assembled 14 | . . . 14 Best Kill Streak 15 | . 8 4 15 Combat Bots Only 15 | . 6 4 15 Max Kills in Single Turn 3 | . 1 1 3 Gunslinging . | . . . . Exploded 3 | . . . 3 Melee . | . . . . Uniques/NPCs Destroyed . | . . . . Combat | -11 -10 -9 -9 -------- Run | Yrd Mat Mat Min Hostile Shots Fired 136 | . 32 41 63 Missed 29 | . 8 10 11 Damage Taken 1756 | . 264 414 1078 Core 453 | . 51 58 344 Absorbed by Shields . | . . . . Core Remaining (%) 89 | 100 79 . . Volleys Fired 77 | . 25 36 16 Largest 2 | . 2 2 2 Hottest 60 | . 60 46 60 Shots Fired 146 | . 50 72 24 Gun 122 | . 50 72 . Cannon 7 | . . . 7 Launcher 17 | . . . 17 Special . | . . . . Kinetic 126 | . 49 72 5 Thermal 2 | . . . 2 Explosive 17 | . . . 17 Electromagnetic 1 | . 1 . . Robot Hit Streak 7 | . 7 7 5 Robot Miss Streak 5 | . 5 3 3 Penetration Max . | . . . . Secondary Targets 2 | . 2 . . Max Gunslinging Chain 1 | . 1 . . Shots Hit Robots 76 | . 27 42 7 Core Hits 60 | . 17 16 27 Critical Kills . | . . . . Critical Parts Destroyed . | . . . . Critical Strikes 1 | . . . 1 Blast 1 | . . . 1 Melee Attacks . | . . . . Impact . | . . . . Slashing . | . . . . Piercing . | . . . . Sneak Attacks . | . . . . Combat Hostiles . | . . . . Follow-up Attacks . | . . . . Damage Inflicted 2106 | . 467 642 997 Guns 1109 | . 467 642 . Cannons 78 | . . . 78 Explosions 919 | . . . 919 Melee . | . . . . Ramming . | . . . . Kinetic 1165 | . 445 642 78 Thermal . | . . . . Explosive 919 | . . . 919 Electromagnetic 22 | . 22 . . Impact . | . . . . Slashing . | . . . . Piercing . | . . . . Highest Corruption . | . . . . Average Corruption . | . . . . Corruption Purged . | . . . . Corruption Blocked . | . . . . Overload Shots . | . . . . Overflow Damage 34 | . . . 34 Projectiles . | . . . . Explosions 34 | . . . 34 Melee . | . . . . Knockbacks 2 | . . . 2 Impact . | . . . . Kinetic 2 | . . . 2 Secondary . | . . . . Self-Inflicted Damage 82 | . . . 82 Shots 3 | . . . 3 Rammed 1 | . . . 1 Targets Rammed 1 | . . . 1 Kicked . | . . . . Crushed . | . . . . Highest Temperature 39 | . 30 39 8 Average Temperature 9 | . 10 9 5 Received Heat Transfer 288 | . 135 153 . Siege Activations . | . . . . Robots Corrupted . | . . . . Combat Hostiles . | . . . . Parts Fried . | . . . . Impact Corruptions . | . . . . Robots Melted . | . . . . Combat Hostiles . | . . . . Parts Melted . | . . . . Heat Transferred . | . . . . Parts Sabotaged . | . . . . Parts Stolen . | . . . . Parts Stripped . | . . . . Power Chain Reactions . | . . . . Alert | -11 -10 -9 -9 ------- Run | Yrd Mat Mat Min Peak Influence 282 | . 282 165 72 Initial 49 | . . 49 14 Average 51 | . 76 47 32 Maximum Alert Level 1 | . 1 . . Low Security (%) 96 | 100 86 100 100 Level 1 3 | . 13 . . Level 2 . | . . . . Level 3 . | . . . . Level 4 . | . . . . Level 5 . | . . . . High Security . | . . . . Max Security . | . . . . Squads Dispatched 4 | . 3 1 . Investigation 2 | . 1 1 . Extermination . | . . . . Reinforcement 2 | . 2 . . Assault . | . . . . Garrison . | . . . . Intercept . | . . . . Searches Triggered . | . . . . Construction Impeded . | . . . . Haulers Reinforced . | . . . . Active Scanning Responses . | . . . . Cargo Convoy Interrupts . | . . . . Stealth | -11 -10 -9 -9 --------- Run | Yrd Mat Mat Min Distress Signals 3 | . 1 2 . Communications Jammed . | . . . . Distress Signals . | . . . . Times Spotted 49 | . 16 14 19 Peak Tracking Total 16 | . 4 5 16 Tactical Retreats 1 | . . . 1 Traps | -11 -10 -9 -9 ------- Run | Yrd Mat Mat Min Traps Triggered 2 | . 1 1 . Indirectly . | . . . . Trap Hack Attempts . | . . . . Triggered . | . . . . Disarmed . | . . . . Reprogrammed . | . . . . Reused . | . . . . Traps Extracted . | . . . . Installed . | . . . . Triggered . | . . . . Machines | -11 -10 -9 -9 ---------- Run | Yrd Mat Mat Min Machines Disabled 1 | . . . 1 Max in Single Turn 1 | . . . 1 Machines Repaired . | . . . . Machines Dismantled . | . . . . Machines Sabotaged . | . . . . Overloaded Fab Kills . | . . . . Hacking | -11 -10 -9 -9 --------- Run | Yrd Mat Mat Min Machines Accessed 4 | . 2 2 . Terminals 4 | . 2 2 . Fabricators . | . . . . Repair Stations . | . . . . Recycling Units . | . . . . Scanalyzers . | . . . . Garrison Access . | . . . . Total Hacks 9 | . 4 5 . Successful 3 | . 1 2 . Failed 6 | . 3 3 . Catastrophic . | . . . . Database Lockouts . | . . . . Manual . | . . . . Terminals 9 | . 4 5 . Fabricators . | . . . . Repair Stations . | . . . . Recycling Units . | . . . . Scanalyzers . | . . . . Garrison Access . | . . . . Terminal Hacks 3 | . 1 2 . Record 1 | . 1 . . Hauler Manifests 1 | . . 1 . Zone Layout 1 | . . 1 . Fabricator Hacks . | . . . . Repair Station Hacks . | . . . . Recycling Unit Hacks . | . . . . Scanalyzer . | . . . . Garrison Access Hacks . | . . . . Unauthorized Hacks . | . . . . Terminals . | . . . . Fabricators . | . . . . Repair Stations . | . . . . Recycling Units . | . . . . Scanalyzers . | . . . . Garrison Access . | . . . . Data Cores Recovered . | . . . . Used . | . . . . Hacking Detections 4 | . 2 2 . Full Trace Events . | . . . . Feedback Events . | . . . . Feedback Blocked . | . . . . Robot Schematics Acquired . | . . . . Robots Built . | . . . . Authchips . | . . . . Time . | . . . . Total Robot Build Rating . | . . . . Part Schematics Acquired . | . . . . Parts Built . | . . . . Authchips . | . . . . Time . | . . . . Total Part Build Rating . | . . . . Parts Repaired . | . . . . Time . | . . . . Parts Recycled . | . . . . Recycled Matter . | . . . . Retrieved Matter . | . . . . Retrieved Components . | . . . . Parts Scanalyzed . | . . . . Part Schematics Acquired . | . . . . Parts Damaged . | . . . . Bothacking | -11 -10 -9 -9 ------------ Run | Yrd Mat Mat Min Used RIF Installer . | . . . . Robots Hacked . | . . . . Non-combat . | . . . . Combat . | . . . . Robot Hacks Applied . | . . . . Relay Couplers Released . | . . . . Fabnet Peak Effective % . | . . . . Robots Rewired . | . . . . Allies Hacked . | . . . . Hacks Repelled . | . . . . Allies | -11 -10 -9 -9 -------- Run | Yrd Mat Mat Min Total Allies . | . . . . Largest Group . | . . . . Highest-Rated Group . | . . . . Highest-Rated Ally . | . . . . Total Orders . | . . . . Ally Attacks . | . . . . Total Damage . | . . . . Kills . | . . . . Allies Corrupted . | . . . . Allies Melted . | . . . . Intel | -11 -10 -9 -9 ------- Run | Yrd Mat Mat Min Robot Analysis Total . | . . . . Derelict Logs Recovered . | . . . . Drone Launches . | . . . . Drone Recoveries . | . . . . Exploration | -11 -10 -9 -9 ------------- Run | Yrd Mat Mat Min Turns Passed 2340 | 57 557 1468 258 Spaces Moved 606 | 44 250 267 45 Core 27 | 22 . . 5 Treads 579 | 22 250 267 40 Legs . | . . . . Wheels . | . . . . Hover . | . . . . Flight . | . . . . Fastest Speed 50 | 50 160 320 320 Average Speed 282 | 105 185 376 436 Slowest Speed 1400 | 160 320 480 1400 Overloaded Moves . | . . . . Propulsion Burnouts . | . . . . Robots Hopped . | . . . . Cave-ins Triggered . | . . . . Exploration Rate (%) 25 | 4 52 28 19 Regions Visited 3 Branch Regions 1 Pre-discovered Areas . | . . . . Known Exits Taken 2 | . 1 1 . Unknown Exits Taken 1 | 1 . . . Scrap Searched . | . . . . Spaces Dug . | . . . . Terrain Destroyed 119 | . . . 119 Melee . | . . . . Projectile . | . . . . AOE 119 | . . . 119 Terrain Rammed . | . . . . Walls Destroyed . | . . . . Machines Disabled . | . . . . Actions | -11 -10 -9 -9 --------- Run | Yrd Mat Mat Min Total 1103 | 54 305 673 71 Wait 364 | . 7 355 2 Move 603 | 43 249 266 45 Hop . | . . . . Pick Up 29 | 5 13 10 1 Fast Attach 2 | 2 . . . Attach 11 | 4 1 4 2 Detach 1 | . . . 1 Swap 9 | . 5 1 3 Drop 6 | . 5 1 . Fire 77 | . 25 36 16 Melee . | . . . . Ram 1 | . . . 1 Kick . | . . . . Crush . | . . . . Escape Stasis . | . . . . Rewire . | . . . . Trap . | . . . . Miscellaneous . | . . . . Route ------- -11/Scrapyard -10/Materials -9/Materials -9/Mines History --------- Turn | Location | Event 8 | -11/Scrapyard | Discovered new exit (range 15) 58 | -11/Scrapyard | Entered Materials 302 | -10/Materials | Build established: Mutant 598 | -10/Materials | Discovered new exit (range 4) 612 | -10/Materials | Identified exit to Materials 615 | -10/Materials | Entered another Materials area 615 | -9/Materials | Evolved 2 slots: Utility x2 1926 | -9/Materials | Discovered new exit (range 14) 2060 | -9/Materials | Identified exit to Mines 2083 | -9/Materials | Entered Mines 2103 | -9/Mines | A weapon hastily lodged in a ceiling crevice suddenly fell to the ground 2207 | -9/Mines | Assembled infested the area 2252 | -9/Mines | Core integrity fell below 50% 2271 | -9/Mines | Destroyed 15 combat bots 2285 | -9/Mines | Lost 6 parts (1p2n1u2w) 2296 | -9/Mines | Core integrity fell below 20% 2341 | -9/Mines | Destroyed by as-85967 with Assembled Rifle Last Messages --------------- U-05 Engineer lays Concrete. U-05 Engineer builds a Wall. U-05 Engineer lays Concrete. The unstable cave ceiling collapses. U-05 Engineer builds a Wall. K-01 Serf collects debris. The unstable cave ceiling collapses. K-01 Serf collects debris. The unstable cave ceiling collapses. K-01 Serf collects debris. as-04784 destroyed. The unstable cave ceiling collapses. Slammed into U-05 Engineer. Acquired 6 matter. T-07 Excavator destroyed. U-05 Engineer builds a Wall. R-06 Scavenger collects Wheel. U-05 Engineer lays Concrete. Acquired 1 matter. The unstable cave ceiling collapses. Map ----- +----------------------------------------------------+ | ????????????????????????????????????????????## ## | | ???????????????????????????????????????????## # | | ????????????????????????????????????####???# | | ??????????????????????????????????### ##### | | ???????????????????????????????#### # | | ??????????????????????????????## ##### ## | | ?????????????????????????###### ##???# ##? | | ?????????????????????????# ##????## ##?? | | ?????????????????????????# ##### ##?????####??? | | ?????????????????????????# #???## ####????????? | | ?????????????????????????# ###### #????????? | | ?????????????????????????# #???????? | | ?????????????????????????# #???????? | | ?????????????????????????# #### ##???????? | | ????????????????????????## ##?## ### ##????????? | | ????????????????????????# ##?# ##?? #?????????? | | ????????????????????????# ### ??? #?????????? | | ????????????????????????# ## #????#?????????? | | ?????????????????####???# ## ???????????????? | | ???????????#????## ##?# ## ???????????????? | | ?????? ### ##?# #### #####???????????????? | | ????? # # ### ## #???????????????????? | | ????? # ## ######??????????????? | | ????" # ## ## ##?????????????? | | ???? # # #### # """ #?????????????? | | ???? =#@ """ #?????????????? | | ???? a ##?????????????? | | ???? ## ## # ##??????????????? | | ?????# # # ## ### #???????????????? | | ?????# # # # #???????????????? | | ????????# ## ## ##???????????????? | | ????????## #?## # ### #####????????????????? | | ?????????#######???#####?# #????????????????????? | | ?????????????????????????# #????????????????????? | | ?????????????????????????? #????????????????????? | | ?????????????????????????? #????????????????????? | | ?????????????????????????? #????????????????????? | | ??????????????????????????###????????????????????? | | ?????????????????????????????????????????????????? | | ?????????????????????????????????????????????????? | | ?????????????????????????????????????????????????? | | ?????????????????????????????????????????????????? | | ?????????????????????????????????????????????????? | | ?????????????????????????????????????????????????? | | ?????????????????????????????????????????????????? | | ?????????????????????????????????????????????????? | | ?????????????????????????????????????????????????? | | ?????????????????????????????????????????????????? | | ?????????????????????????????????????????????????? | | ?????????????????????????????????????????????????? | +----------------------------------------------------+ Best States ------------- Heat Dissipation 28 Energy Generation 10 Energy Capacity 250 Matter Stores 300 Matter Capacity 300 Sight Range 18 Terrain Scan Density 10 Armor Coverage 225 Evasion (%) 50 Recoil Reduction 2 Item Schematics ----------------- None Robot Schematics ------------------ None Fabricated ------------ Nothing Alien Tech Used ----------------- None Achievements -------------- Shopping List Challenges ------------ None Game ------ Seed ImprovedNeutrinoPendant Manual? 0 Play Time 00:23:26 Cumulative 7.3 hours Start 2024.04.04 @ 23:26:49 End 2024.04.05 @ 00:06:26 Sessions 1 Manual Loads 0 Difficulty Rogue Special Mode None Game No. 11 Rogue 11 Adventurer 0 Explorer 0 Win Type - Total 0 Types 0/0/0/0/0/0/0/0/0 Lore% 13 Gallery% 15 Achievement% 14 Wizard Run 0 Options --------- Layout 1 ASCII 0 Keyboard 0 Movement Mouse Keybinds 0 Fullscreen 2 Font 24/Smallcaps Map View 50x35 Zoom Use 0% Tactical HUD 0 Map Filters NONE Filters NONE Steam 1 RUN: 2588bb15-1dd9-4c05-bad7-96f00f7368fc